bitfinex/quotes_ETHUSD_20251021
["timestamp","ask_amount","ask_price","bid_price","bid_amount"]
[1761063148173,0.001,4085.6,4085.1,0.1216]
[1761063148602,0.01934485,4085.5,4085.1,0.1216]
[1761063148812,0.001,4085.5,4085.1,0.1216]
[1761063148997,2.65816056,4085.2,4085.1,0.1216]
[1761063149171,2.65816056,4085.2,4085.0,3.448]
[1761063149172,2.44792049,4085.1,4085.0,3.448]
[1761063149909,0.001,4085.2,4085.0,3.448]
[1761063150395,0.001,4085.2,4085.1,0.1216]
[1761063153009,0.001,4085.2,4085.1,0.1460792]
[1761063153189,0.001,4085.2,4085.1,0.1216]
[1761063154888,0.001,4085.2,4084.2,0.2204]
[1761063154889,1.728,4085.1,4084.2,0.2204]
[1761063155087,0.001,4085.2,4084.3,3.92987344]
[1761063155415,0.001,4085.2,4084.7,2.44815848]
[1761063155616,0.001,4085.2,4084.8,3.443]
[1761063156211,2.44887468,4085.2,4084.8,3.443]
[1761063156413,0.001,4085.2,4084.8,3.443]
[1761063156919,2.44890485,4085.2,4084.8,3.443]
[1761063157293,0.2201,4084.9,4084.8,3.443]
[1761063157496,2.66814034,4084.9,4084.8,3.443]
[1761063158324,0.2201,4084.9,4084.8,3.443]
[1761063158533,2.44886475,4085.2,4084.8,3.443]
[1761063158698,0.001,4085.2,4084.8,3.443]
[1761063158913,2.44793802,4085.1,4084.8,3.443]
[1761063159584,0.66247455,4085.1,4084.2,0.2204]
[1761063159784,2.4483993,4084.4,4083.7,0.61]
[1761063159985,2.44826514,4084.6,4083.7,0.61]
[1761063160216,2.66684688,4084.9,4083.9,2.44860166]
[1761063160420,2.44833899,4084.5,4083.7,1.0758]
[1761063160621,2.44835646,4084.4,4083.7,3.52454212]
[1761063160781,1.8836,4084.8,4083.7,1.0758]
[1761063160984,0.001,4085.2,4083.8,0.49028699]
[1761063161218,0.001,4085.2,4084.3,2.44835826]
[1761063161219,0.240308,4085.2,4084.3,2.44835826]
[1761063161383,2.44799152,4085.0,4084.4,3.266]
[1761063161588,4.17598041,4085.0,4084.5,3.44]
[1761063161915,0.240308,4085.2,4084.5,3.44]
[1761063162116,0.001,4085.2,4084.5,3.44]
[1761063162307,0.001,4085.2,4084.6,2.44819211]
[1761063162516,0.001,4085.2,4084.5,3.44]
[1761063162517,0.001,4085.2,4084.7,0.0244816]
[1761063162809,0.001,4085.2,4084.8,0.024481]
[1761063163014,0.001,4085.2,4085.1,2.44792049]
[1761063163317,0.001,4085.2,4085.1,3.44]
[1761063163522,0.001,4085.2,4085.1,6.35372049]
[1761063164115,0.001,4085.2,4085.1,3.9058]
[1761063164295,0.001,4085.2,4085.1,3.44]
[1761063164499,0.001,4085.2,4085.1,3.6857]
[1761063164812,0.001,4085.2,4085.1,3.5616]
[1761063165404,0.001,4085.2,4085.1,6.47532049]
[1761063165604,0.001,4085.2,4085.1,7.24605623]
[1761063166067,0.001,4085.2,4085.1,6.78025623]
[1761063166234,0.001,4085.2,4085.1,5.88792049]
[1761063166399,0.001,4085.2,4085.1,6.35372049]
[1761063166918,0.001,4085.2,4085.1,5.88792049]
[1761063167101,0.001,4085.2,4085.1,6.35372049]
[1761063167816,0.001,4085.2,4085.1,3.44]
[1761063168930,2.44886056,4085.2,4085.1,3.44]
[1761063169130,3.09551515,4085.2,4085.1,3.44]
[1761063169296,0.001,4085.2,4085.1,3.44]
[1761063169501,0.1579,4085.2,4085.1,3.44]
[1761063169696,4.33376056,4085.2,4085.1,3.44]
[1761063170417,0.001,4085.2,4085.1,3.44]
[1761063171334,0.001,4085.2,4085.1,5.91239969]
[1761063171648,0.001,4085.2,4085.1,6.35372049]
[1761063171853,0.001,4085.2,4085.1,3.44]
[1761063173014,0.001,4085.2,4085.1,5.88792049]
[1761063173217,0.001,4085.2,4085.1,3.44]
[1761063174240,0.001,4085.2,4085.1,5.88792049]
[1761063174416,0.001,4085.2,4085.1,3.44]
[1761063175048,0.001,4085.2,4085.1,5.88792049]
[1761063175720,0.001,4085.2,4085.1,6.44442049]
[1761063176851,0.001,4085.2,4085.1,7.33366459]
[1761063181974,0.001,4085.6,4085.5,5.53756082]
[1761063181975,1e-08,4085.6,4085.5,5.53756082]
[1761063182142,1e-08,4085.8,4085.7,9.804712]
[1761063182472,1e-08,4085.8,4085.7,10.500983]
[1761063182767,1e-08,4085.8,4085.7,7.815633]
[1761063182965,1e-08,4085.8,4085.7,9.45541839]
[1761063183735,1e-08,4085.8,4085.7,9.70111839]
[1761063183945,1e-08,4085.8,4085.7,12.28411839]
[1761063184151,0.2201,4088.4,4085.9,27.3827412]
[1761063184448,0.1512,4088.7,4086.3,5.53708162]
[1761063184660,0.1512,4088.7,4086.3,25.65258578]
[1761063184968,0.2194,4088.8,4086.3,23.33248678]
[1761063185373,0.2194,4088.8,4086.3,21.32306678]
[1761063185677,1.9474,4088.8,4086.3,21.32306678]
[1761063185967,0.001,4089.2,4086.3,21.32306678]
[1761063185968,2.44647958,4089.2,4086.3,21.32306678]
[1761063186171,0.1137,4089.1,4086.3,21.32306678]
[1761063186371,0.1137,4089.1,4088.5,2.44582752]
[1761063186572,0.1137,4089.1,4088.7,2.44574037]
[1761063186736,0.1137,4089.1,4088.8,0.02445705]
[1761063187037,0.001,4089.2,4088.9,3.426]
[1761063187241,0.001,4089.2,4089.0,3.426]
[1761063187437,0.001,4089.2,4089.1,3.426]
[1761063187739,0.2575,4089.2,4089.1,3.426]
[1761063188076,0.2575,4089.2,4087.3,2.0879]
[1761063188077,4.4309661,4089.2,4087.3,2.0879]
[1761063188379,2.44607781,4088.2,4087.3,4.099601]
[1761063188604,2.44631097,4087.8,4087.4,2.034]
[1761063188875,2.44631097,4087.8,4086.2,0.2203]
[1761063188876,0.2203,4087.4,4085.5,1.653]
[1761063189178,2.44673327,4087.1,4086.2,2.44725992]
[1761063189387,0.3676,4087.3,4086.3,5.87215885]
[1761063189542,2.44676727,4087.1,4086.3,3.425]
[1761063189738,2.44679468,4087.0,4086.3,3.425]
[1761063189964,0.1438,4087.2,4086.3,3.425]
[1761063190182,0.2203,4087.4,4086.3,3.425]
[1761063190393,1.728,4087.9,4087.0,2.4467617]
[1761063190563,0.35150485,4087.8,4087.1,3.424]
[1761063190764,0.35150485,4087.8,4085.6,0.30475973]
[1761063190765,0.50688,4087.7,4085.6,0.30475973]
[1761063190994,0.1388,4087.7,4085.7,3.8589]
[1761063191206,2.44642332,4087.6,4086.0,2.44736262]
[1761063191378,0.1388,4087.7,4085.8,2.74456597]
[1761063191582,0.1388,4087.6,4085.8,2.30966597]
[1761063191783,2.44670589,4087.2,4086.3,2.447194]
[1761063191974,2.44670589,4087.2,4086.4,5.87012387]
[1761063192200,0.1388,4087.1,4086.4,5.87012387]
[1761063192495,1.728,4087.9,4086.5,3.0585625]
[1761063192676,2.44660177,4087.4,4086.4,5.8700879]
[1761063192873,1.8668,4087.9,4087.0,2.44673318]
[1761063192874,0.1388,4087.8,4087.0,2.44673318]
[1761063193171,0.2156,4088.0,4087.6,2.44640669]
[1761063193370,0.2156,4088.0,4087.7,3.423]
[1761063193898,0.1388,4087.9,4087.7,3.423]
[1761063194201,0.2156,4088.0,4087.8,0.02446303]
[1761063194503,0.2156,4088.0,4087.7,3.423]
[1761063194504,1.8668,4088.5,4087.7,5.8693526]
[1761063194699,0.44961194,4088.4,4087.7,3.423]
[1761063195002,0.2141,4087.8,4087.7,3.423]
[1761063195297,0.3523,4088.3,4087.7,3.423]
[1761063195498,2.44609231,4088.2,4087.7,3.423]
[1761063195801,0.3523,4088.3,4087.7,3.423]
[1761063196005,0.80492562,4088.3,4087.7,3.423]
[1761063196299,0.80492562,4088.3,4086.2,2.44726151]
[1761063196300,1.728,4087.8,4086.2,2.44726151]
[1761063196500,1.728,4087.8,4086.3,2.44718654]
[1761063196699,1.728,4087.8,4086.1,3.887]
[1761063196700,1.728,4087.6,4086.5,2.4470344]
[1761063197003,2.44675599,4087.1,4086.1,3.887]
[1761063197175,2.44679363,4087.0,4086.3,2.44719875]
[1761063197368,2.44679363,4087.0,4086.1,3.887]
[1761063197369,2.44671903,4087.2,4086.4,2.4471277]
[1761063197574,2.44659423,4087.4,4086.5,2.44702852]
[1761063197810,2.44659423,4087.4,4086.6,2.44701128]
[1761063198101,4.17452408,4087.5,4086.7,3.421]
[1761063198302,3.3683295,4087.4,4086.7,3.421]
[1761063198472,0.9217826,4087.4,4086.7,3.421]
[1761063198673,1.728,4087.5,4086.7,3.421]
[1761063198878,2.44650232,4087.5,4086.7,5.86795231]
[1761063199078,2.57505821,4087.4,4086.7,3.421]
[1761063199279,2.44675662,4087.1,4086.7,3.421]
[1761063199479,0.2251,4086.8,4086.7,3.421]
[1761063199793,0.1295,4087.0,4086.7,3.421]
[1761063200393,0.2241,4087.2,4086.7,3.421]
[1761063201205,2.57713217,4087.1,4086.7,3.421]
[1761063201910,0.1304,4087.0,4086.7,3.421]
[1761063202488,2.44690222,4086.8,4086.7,3.421]
[1761063202690,2.57730222,4086.8,4086.7,3.421]
[1761063202916,2.44696367,4086.7,4086.0,0.2457]
[1761063203110,2.44696367,4086.7,4086.3,3.418]
[1761063203311,0.1304,4086.8,4086.3,3.418]
[1761063203636,0.2241,4087.2,4086.4,2.94531314]
[1761063203915,0.2241,4087.2,4086.5,2.44703411]
[1761063204087,2.67077325,4087.2,4086.5,2.44707096]
[1761063204422,0.2241,4087.2,4087.0,0.1216]
[1761063204910,0.3555,4087.2,4087.0,0.1216]
[1761063205314,0.2251,4087.2,4087.0,0.1216]
[1761063205495,0.1304,4087.1,4087.0,0.1216]
[1761063206213,0.2251,4087.2,4087.0,0.1216]
[1761063206407,0.1304,4087.1,4087.0,0.1216]
[1761063206604,0.3555,4087.2,4087.0,0.1216]
[1761063206812,0.1304,4087.1,4087.0,0.1216]
[1761063207101,0.2251,4087.2,4087.0,0.1216]
[1761063207624,2.44681918,4087.0,4086.8,3.417]
[1761063207916,0.1304,4086.9,4086.8,3.417]
[1761063208103,2.44681918,4087.0,4086.8,3.417]
[1761063208297,0.1304,4086.9,4086.8,3.417]
[1761063208622,2.6718168,4087.2,4086.8,3.417]
[1761063208813,3.32709363,4087.2,4086.8,3.417]
[1761063209016,0.88037683,4087.2,4086.8,3.417]
[1761063209218,0.001,4087.2,4086.8,3.417]
[1761063210110,0.1324,4087.2,4086.8,3.417]
[1761063210419,0.001,4087.2,4086.8,3.417]
[1761063211021,0.001,4087.2,4087.1,2.44672261]
[1761063211721,0.001,4087.2,4087.1,3.13582261]
[1761063211892,0.001,4087.2,4087.1,3.38152261]
[1761063212419,0.001,4087.2,4087.1,4.3060591]
[1761063213319,0.001,4087.2,4087.1,3.38152261]
[1761063213797,0.001,4087.2,4087.1,2.69242261]
[1761063214207,0.001,4087.2,4087.1,2.90782261]
[1761063214609,0.001,4087.2,4087.1,3.38152261]
[1761063216131,0.001,4087.2,4087.1,9.18455383]
[1761063216337,0.001,4087.2,4087.1,13.3565215]
[1761063216537,0.001,4087.2,4087.1,16.4414015]
[1761063217145,0.001,4087.2,4087.1,12.1709275]
[1761063217439,0.001,4087.2,4087.1,12.1569855]
[1761063217609,0.001,4087.2,4087.1,12.2785855]
[1761063218037,0.001,4087.2,4087.1,11.6094775]
[1761063218669,0.001,4087.2,4087.1,13.34022415]
[1761063218939,0.001,4087.2,4087.1,18.09400455]
[1761063219442,0.001,4089.2,4089.1,2.44552591]
[1761063219641,0.001,4089.2,4089.1,6.09338116]
[1761063219939,0.001,4089.2,4089.1,7.39652439]
[1761063222140,0.001,4089.2,4089.1,6.70742439]
[1761063222342,0.001,4089.2,4089.1,8.90912439]
[1761063222550,0.001,4089.2,4089.1,9.41600439]
[1761063222716,0.001,4089.2,4089.1,16.82127239]
[1761063223246,0.001,4089.2,4089.1,3.29942439]
[1761063223409,0.001,4089.2,4089.1,3.406]
[1761063223610,0.001,4089.2,4089.1,5.85152591]
[1761063224251,0.001,4089.2,4089.1,3.406]
[1761063224553,0.2909,4089.9,4089.1,5.85148262]
[1761063224750,0.36898736,4089.9,4089.1,3.406]
[1761063225051,0.001,4090.1,4090.0,2.44498777]
[1761063225251,0.001,4090.1,4090.0,5.84998777]
[1761063225446,0.001,4090.1,4090.0,6.32368777]
[1761063225817,0.001,4090.1,4090.0,3.405]
[1761063226219,0.1951,4090.1,4090.0,3.405]
[1761063226420,0.001,4090.1,4090.0,3.405]
[1761063226737,0.001,4090.1,4090.0,5.84998777]
[1761063226914,0.001,4090.1,4090.0,3.405]
[1761063227447,0.001,4090.1,4090.0,5.84998777]
[1761063228026,0.001,4090.1,4090.0,3.405]
[1761063228228,0.001,4090.1,4090.0,5.84998777]
[1761063229235,0.001,4090.1,4090.0,6.09568777]
[1761063229436,0.001,4090.1,4090.0,7.54506649]
[1761063229851,0.001,4090.1,4090.0,6.21728777]
[1761063230262,0.001,4090.1,4090.0,6.69098777]
[1761063231028,0.001,4090.1,4090.0,6.56938777]
[1761063231352,0.001,4090.1,4090.0,6.49338777]
[1761063232670,0.001,4090.1,4090.0,6.01968777]
[1761063233233,0.001,4090.1,4090.0,6.49338777]
[1761063233436,0.001,4090.1,4090.0,6.01968777]
[1761063234360,0.001,4090.1,4090.0,7.3272633]
[1761063236075,0.001,4090.1,4090.0,6.8661633]
[1761063236643,0.001,4090.1,4090.0,6.01968777]
[1761063237044,0.001,4090.1,4090.0,6.48078777]
[1761063237252,0.001,4090.1,4090.0,6.01968777]
[1761063237735,0.001,4090.1,4090.0,2.69068777]
[1761063237936,0.001,4090.1,4090.0,3.6427]
[1761063238555,0.1849,4090.1,4090.0,3.6427]
[1761063238773,0.1849,4090.1,4088.6,0.2457]
[1761063238948,22.29178782,4090.0,4088.6,0.2457]
[1761063239146,2.44528718,4089.5,4088.7,3.073]
[1761063239370,0.01834485,4089.7,4088.7,5.51875367]
[1761063239556,2.44523698,4089.6,4088.7,3.073]
[1761063239756,1.08248598,4089.6,4088.7,3.073]
[1761063239957,0.1087,4089.5,4088.7,3.073]
[1761063240164,0.1087,4089.5,4088.8,2.44570534]
[1761063240459,0.1087,4089.5,4088.7,3.073]
[1761063240460,0.1087,4089.5,4088.7,5.51876327]
[1761063240661,0.2222,4088.8,4088.7,3.073]
[1761063240866,0.2222,4088.8,4088.7,5.51876515]
[1761063241069,0.2233,4089.8,4088.7,3.99106525]
[1761063241390,0.001,4090.1,4090.0,2.44698777]
[1761063241556,0.001,4090.1,4090.0,3.396]
[1761063241884,0.1126,4090.1,4090.0,3.5176]
[1761063242093,0.1126,4090.1,4090.0,0.1236]
[1761063242375,0.1126,4090.1,4090.0,0.002]
[1761063242766,0.1126,4090.1,4090.0,3.396]
[1761063242969,0.001,4090.1,4090.0,3.396]
[1761063243148,0.001,4090.1,4090.0,6.18058777]
[1761063243351,0.001,4090.1,4090.0,6.42628777]
[1761063243678,0.001,4090.1,4090.0,6.08668777]
[1761063244345,0.001,4090.1,4090.0,5.84098777]
[1761063245497,0.001,4090.5,4090.4,3.19732867]
[1761063245671,0.001,4090.5,4090.4,12.00838667]
[1761063245866,0.001,4090.5,4090.4,14.47682156]
[1761063246066,0.001,4090.6,4090.5,10.88448491]
[1761063246285,0.001,4090.6,4090.5,6.23636891]
[1761063246675,0.001,4090.6,4090.5,2.69038891]
[1761063246873,0.001,4090.6,4090.5,2.44468891]
[1761063247187,0.001,4090.6,4090.4,3.392]
[1761063248897,0.001,4090.6,4090.5,2.44468891]
[1761063249494,0.001,4090.6,4090.5,3.27283739]
[1761063250857,0.001,4090.6,4090.5,6.22004971]
[1761063251166,0.001,4090.6,4090.5,5.70763739]
[1761063252307,0.001,4090.6,4090.5,5.82923739]
[1761063254406,0.001,4090.6,4090.5,5.58353739]
[1761063255017,0.001,4090.6,4090.5,8.25345539]
[1761063255914,0.001,4090.6,4090.5,32.62101068]
[1761063256125,0.001,4090.6,4090.5,35.44471068]
[1761063256434,0.001,4090.6,4090.5,35.44270831]
[1761063256732,0.001,4090.6,4090.5,33.71117836]
[1761063257489,0.001,4090.6,4090.5,33.42753736]
[1761063260121,0.001,4090.6,4090.5,8.91411739]
[1761063260320,0.001,4090.6,4090.5,5.12243739]
[1761063260489,0.001,4090.6,4090.5,8.48798539]
[1761063261401,0.001,4090.6,4090.5,7.64605139]
[1761063261724,0.001,4090.6,4090.5,10.12944074]
[1761063261937,0.001,4090.6,4090.5,12.70744074]
[1761063262123,0.001,4090.6,4090.5,10.97663139]
[1761063262524,0.001,4090.6,4090.5,11.51120239]
[1761063262832,0.001,4090.6,4090.5,11.79360239]
[1761063262990,0.001,4090.6,4090.5,11.48368339]
[1761063263490,0.001,4090.6,4090.5,13.21449274]
[1761063264445,0.3175,4092.3,4092.0,0.2457]
[1761063264729,3.24862505,4092.8,4092.2,0.2457]
[1761063265222,0.099,4092.5,4092.2,0.2457]
[1761063266499,0.80529023,4092.8,4092.4,22.37284297]
[1761063266699,0.80529023,4092.8,4092.7,0.2457]
[1761063267099,1.11889023,4092.8,4092.7,0.2457]
[1761063267726,1.11889023,4092.8,4092.5,3.38]
[1761063267727,1.11889023,4092.8,4092.6,0.2457]
[1761063268025,0.3136,4092.7,4092.6,0.2457]
[1761063270029,0.80529023,4092.8,4092.6,2.68913449]
[1761063270333,0.80529023,4092.8,4092.7,2.44337478]
[1761063270630,0.90429023,4092.8,4092.6,0.2457]
[1761063271140,0.099,4092.7,4092.6,0.2457]
[1761063271833,0.099,4092.7,4091.7,0.2447]
[1761063272035,0.01834485,4092.6,4091.7,0.2447]
[1761063272236,0.01834485,4092.6,4090.8,0.235]
[1761063272237,0.2187,4092.0,4091.8,3.377]
[1761063272531,0.2187,4092.0,4091.9,2.657]
[1761063272731,0.5342,4092.0,4091.9,2.657]
[1761063273031,0.2175,4092.2,4091.9,2.657]
[1761063273244,0.1002,4092.1,4091.9,2.657]
[1761063274427,0.1002,4092.1,4092.0,0.1216]
[1761063275435,2.54393304,4092.1,4092.0,0.1216]
[1761063275651,0.1002,4092.1,4092.0,0.1216]
[1761063275857,1.02169023,4092.8,4092.0,0.1216]
[1761063276004,1.02169023,4092.8,4091.9,2.657]
[1761063276211,3.59991433,4092.8,4092.7,0.1216]
[1761063276737,3.70121433,4092.8,4092.7,0.1216]
[1761063276943,1.37949925,4092.8,4092.1,0.1216]
[1761063277149,2.4434626,4092.6,4092.4,0.1216]
[1761063277459,0.1013,4092.7,4092.4,0.1216]
[1761063277750,1.15659925,4092.8,4092.4,0.1216]
[1761063277751,2.54475361,4092.6,4092.4,0.1216]
[1761063277922,0.1023,4092.6,4092.4,0.1216]
[1761063278122,0.1013,4092.5,4092.4,0.1216]
[1761063279202,0.001,4092.6,4092.4,0.1216]
[1761063279407,0.1013,4092.5,4092.4,0.1216]
[1761063280410,0.001,4092.6,4092.4,0.1216]
[1761063280610,0.1023,4092.6,4092.4,0.1216]
[1761063280807,0.48175148,4092.6,4092.4,0.1216]
[1761063281042,2.44349419,4092.5,4092.4,0.1216]
[1761063281234,2.54479419,4092.5,4092.4,0.1216]
[1761063282847,0.1013,4092.5,4091.9,3.372]
[1761063283048,2.44365604,4092.3,4091.9,3.372]
[1761063283260,2.44368467,4092.2,4091.9,3.372]
[1761063283614,2.54504754,4092.1,4091.9,3.372]
[1761063284054,0.1013,4092.0,4091.9,3.372]
[1761063284548,0.1013,4092.0,4091.9,3.6167]
[1761063284855,0.1013,4092.4,4091.9,3.6167]
[1761063285041,2.54509276,4092.0,4091.9,3.6167]
[1761063286814,0.24445004,4092.4,4091.9,3.6167]
[1761063286815,2.44376917,4092.1,4091.9,3.6167]
[1761063287058,2.44361988,4092.3,4091.9,3.6167]
[1761063287059,2.44379276,4092.0,4091.9,3.6167]
[1761063287931,2.54509276,4092.0,4091.9,3.6167]
[1761063288447,2.44397468,4091.7,4091.5,3.369]
[1761063288646,2.44385805,4091.9,4091.5,3.369]
[1761063288647,2.44393166,4091.8,4091.5,3.369]
[1761063288955,2.44445499,4092.6,4091.6,0.26914031]
[1761063288956,0.1025,4092.3,4091.6,0.26914031]
[1761063289125,2.44371233,4092.2,4091.6,0.2447]
[1761063289325,2.44377416,4092.1,4091.6,0.2447]
[1761063289649,0.001,4092.6,4091.6,2.68869243]
[1761063289650,2.44356785,4092.4,4091.6,2.68869243]
[1761063289948,2.44356785,4092.4,4091.6,0.2447]
[1761063289949,2.44360239,4092.4,4091.6,0.2447]
[1761063290174,2.4434982,4092.5,4091.7,2.44396717]
[1761063290475,2.44355916,4092.4,4091.8,0.2447]
[1761063291375,3.2176217,4092.5,4091.9,0.2447]
[1761063291580,0.1046,4092.6,4092.0,3.368]
[1761063291788,0.1046,4092.6,4092.1,0.2447]
[1761063291789,0.001,4092.6,4092.1,0.2447]
[1761063292084,0.001,4092.6,4092.3,0.2447]
[1761063292439,0.001,4092.6,4092.5,0.2447]
[1761063292786,0.1058,4092.6,4092.5,3.4886]
[1761063292990,0.001,4092.6,4092.5,3.4886]
[1761063294434,0.001,4092.6,4092.5,3.7333]
[1761063298148,0.1038,4092.6,4092.5,3.7313]
[1761063298555,0.46379973,4092.6,4092.5,3.7313]
[1761063298760,0.001,4092.6,4092.5,3.7313]
[1761063299079,0.1038,4092.6,4092.5,3.7313]
[1761063300168,0.1038,4092.6,4092.3,0.2447]
[1761063300371,0.01834485,4092.5,4092.3,0.2447]
[1761063300787,0.001,4092.6,4092.3,0.2447]
[1761063301092,0.001,4092.6,4092.5,0.2447]
[1761063301453,0.1038,4092.6,4092.5,0.2447]
[1761063301865,0.001,4092.6,4092.5,0.2447]
[1761063304361,0.105,4092.6,4092.5,0.2447]
[1761063304659,0.44036247,4092.6,4092.5,0.2447]
[1761063304867,0.001,4092.6,4092.5,0.2447]
[1761063305112,0.105,4092.6,4092.5,0.2447]
[1761063305469,0.001,4092.6,4092.5,0.2447]
[1761063306271,0.105,4092.6,4092.5,0.2447]
[1761063306791,0.001,4092.6,4092.5,0.2447]
[1761063307492,0.001,4092.6,4092.5,2.68819419]
[1761063307663,0.001,4092.6,4092.5,3.53777302]
[1761063308492,0.001,4092.6,4092.5,3.14502913]
[1761063308707,0.001,4092.6,4092.5,3.12059419]
[1761063309709,0.001,4092.6,4092.5,4.84859419]
[1761063309914,0.001,4092.6,4092.5,8.20659419]
[1761063310846,0.001,4092.6,4092.5,3.6017]
[1761063311228,0.1072,4092.6,4092.5,3.6017]
[1761063311429,2.55063449,4092.6,4092.5,3.6017]
[1761063311611,3.15369403,4092.6,4092.5,3.6017]
[1761063312465,3.15369403,4092.6,4091.6,0.0752]
[1761063312466,0.71025954,4092.6,4092.3,0.2447]
[1761063312632,2.4435539,4092.4,4092.3,0.2447]
[1761063313031,0.1062,4092.4,4092.3,0.2447]
[1761063313535,2.5497539,4092.4,4092.3,0.2447]
[1761063313729,0.1062,4092.4,4092.3,0.2447]
[1761063314628,2.44448261,4092.6,4092.3,0.2447]
[1761063314831,0.56930937,4092.5,4092.3,0.2447]
[1761063315165,2.44448261,4092.6,4092.3,0.2447]
[1761063315166,0.001,4092.6,4092.5,2.68819419]
[1761063315371,0.001,4092.6,4092.5,3.12059419]
[1761063315571,0.001,4092.6,4092.5,6.50002913]
[1761063315745,0.001,4092.6,4092.5,6.04319419]
[1761063315948,0.001,4092.6,4092.5,0.2447]
[1761063316169,0.001,4092.6,4092.5,3.5987]
[1761063317438,0.001,4092.6,4092.5,3.7203]
[1761063318276,0.1,4092.6,4092.5,3.7203]
[1761063318442,0.001,4092.6,4092.5,3.7203]
[1761063318639,0.001,4092.6,4092.5,3.5987]
[1761063320477,0.001,4092.6,4092.5,6.64643089]
[1761063320778,0.001,4092.6,4092.5,6.04219419]
[1761063321080,0.001,4092.6,4092.5,6.49119419]
[1761063322536,0.001,4092.6,4092.5,11.21213319]
[1761063322741,0.001,4092.6,4092.5,10.88831719]
[1761063322978,0.001,4092.6,4092.5,7.99758123]
[1761063323483,0.001,4092.6,4092.5,12.79295923]
[1761063323845,0.001,4092.6,4092.5,14.18259023]
[1761063324067,0.001,4092.6,4092.5,9.72558123]
[1761063324271,0.001,4092.6,4092.5,20.40623823]
[1761063326847,0.001,4092.6,4092.5,42.65051049]
[1761063327167,0.001,4092.6,4092.5,44.38245733]
[1761063327537,0.001,4092.6,4092.5,19.79744123]
[1761063327759,0.001,4092.6,4092.5,9.72558123]
[1761063328866,0.001,4092.6,4092.5,9.84718123]
[1761063329488,0.001,4092.6,4092.5,9.39818123]
[1761063329691,0.001,4092.6,4092.5,9.86868123]
[1761063330482,0.001,4092.6,4092.5,8.36229419]
[1761063330991,0.001,4092.6,4092.5,7.89179419]
[1761063331294,0.001,4092.6,4092.5,8.36229419]
[1761063331813,0.80529023,4092.8,4092.7,2.44337478]
[1761063331971,0.80529023,4092.8,4092.7,46.1385528]
[1761063332298,0.80529023,4092.8,4092.7,39.74704269]
[1761063333510,0.80529023,4092.8,4092.7,33.95450769]
[1761063333662,0.80529023,4092.8,4092.7,6.63980967]
[1761063333862,0.80529023,4092.8,4092.5,0.3663]
[1761063334084,0.80529023,4092.8,4092.5,0.1216]
[1761063334085,0.12104485,4092.7,4092.5,0.1216]
[1761063334295,0.12104485,4092.7,4092.6,3.344]
[1761063334471,0.80529023,4092.8,4092.6,3.344]
[1761063334696,0.80529023,4092.8,4092.7,0.1216]
[1761063335402,0.90429023,4092.8,4092.7,0.1216]
[1761063335761,0.80529023,4092.8,4092.7,0.1216]
[1761063336167,0.80529023,4092.8,4092.7,2.56497478]
[1761063337697,0.80529023,4092.8,4092.7,0.1216]
[1761063337898,0.90429023,4092.8,4092.7,0.1216]
[1761063338504,0.90429023,4092.8,4092.5,0.2447]
[1761063338694,0.099,4092.7,4092.6,3.342]
[1761063339386,0.80529023,4092.8,4092.6,3.342]
[1761063339589,0.80529023,4092.8,4092.6,5.78539758]
[1761063339792,0.099,4092.7,4092.6,3.342]
[1761063340173,0.11734485,4092.7,4092.5,0.2447]
[1761063340368,2.35648,4092.5,4092.4,0.002]
[1761063340679,2.45548,4092.5,4092.4,0.002]
[1761063341189,4.89897419,4092.5,4092.4,0.002]
[1761063341388,4.91731904,4092.5,4092.4,0.002]
[1761063341582,4.89897419,4092.5,4092.4,0.002]
[1761063341782,5.74857395,4092.5,4092.4,0.002]
[1761063343371,5.62697395,4092.5,4092.4,0.002]
[1761063344473,3.18347976,4092.5,4092.4,0.002]
[1761063344808,4.77737419,4092.5,4092.4,0.002]
[1761063345301,0.34835681,4092.6,4092.4,0.002]
[1761063345501,0.50688,4092.7,4092.4,0.002]
[1761063346887,0.60588,4092.7,4092.4,0.002]
[1761063347390,0.50688,4092.7,4092.4,0.002]
[1761063347877,0.80529023,4092.8,4092.4,0.002]
[1761063348073,2.54245044,4092.6,4092.4,0.002]
[1761063348375,0.69170093,4092.6,4092.4,3.34]
[1761063348589,0.099,4092.5,4092.4,3.34]
[1761063350111,2.54249419,4092.5,4092.4,3.34]
[1761063350311,0.099,4092.5,4092.4,0.002]
[1761063350482,4.77737419,4092.5,4092.4,0.002]
[1761063350812,5.63934902,4092.5,4092.4,0.002]
[1761063356784,8.97434902,4092.5,4092.4,0.002]
[1761063357603,8.46646902,4092.5,4092.4,0.002]
[1761063358415,8.97334902,4092.5,4092.4,0.002]
[1761063360190,5.63934902,4092.5,4092.4,0.002]
[1761063360415,0.80629023,4092.8,4092.4,0.002]
[1761063360697,0.80629023,4092.8,4092.4,2.90134106]
[1761063361029,0.01834485,4092.7,4092.4,0.002]
[1761063361327,0.80629023,4092.8,4092.4,0.002]
[1761063361701,3.24961167,4092.8,4092.4,0.002]
[1761063361928,2.44337946,4092.7,4092.4,0.002]
[1761063362092,0.80629023,4092.8,4092.4,0.002]
[1761063362493,0.50688,4092.7,4092.4,0.002]
[1761063362726,2.95025812,4092.7,4092.4,0.002]
[1761063362924,0.50688,4092.7,4092.4,0.002]
[1761063363328,2.95027244,4092.7,4092.4,0.002]